[Event "Early-Titled-Tuesday-Blitz-January-30-2024"]
[Site "Chess.com"]
[Date "2024.01.30"]
[Round "3"]
[White "Szparu"]
[Black "FabianoCaruana"]
[Result "0-1"]
[WhiteElo "2769"]
[BlackElo "3057"]
[TimeControl "180+1"]
[EndTime "8:29:09 PST"]
[Termination "FabianoCaruana won on time"]

1. Nf3 {[%clk 0:03:00.9]} 1... Nf6 {[%clk 0:02:59.7]} 2. c4 {[%clk 0:03:00.4]}
2... g6 {[%clk 0:02:59.7]} 3. b3 {[%clk 0:02:59.8]} 3... Bg7 {[%clk 0:02:59.7]}
4. Bb2 {[%clk 0:03:00.4]} 4... O-O {[%clk 0:03:00.4]} 5. g3 {[%clk 0:03:01]}
5... d6 {[%clk 0:03:00.6]} 6. d4 {[%clk 0:03:01.2]} 6... Bf5 {[%clk 0:02:59.8]}
7. Nc3 {[%clk 0:02:59.5]} 7... Ne4 {[%clk 0:02:59.3]} 8. Bg2 {[%clk 0:02:58]}
8... Nxc3 {[%clk 0:02:59.3]} 9. Bxc3 {[%clk 0:02:58.3]} 9... Be4 {[%clk
0:03:00]} 10. O-O {[%clk 0:02:55.3]} 10... c5 {[%clk 0:02:59.6]} 11. Qd2 {[%clk
0:02:47.7]} 11... Nc6 {[%clk 0:02:57.8]} 12. dxc5 {[%clk 0:02:34]} 12... dxc5
{[%clk 0:02:57]} 13. Bxg7 {[%clk 0:02:33.4]} 13... Kxg7 {[%clk 0:02:52.9]} 14.
Qb2+ {[%clk 0:02:21.3]} 14... Kg8 {[%clk 0:02:51.6]} 15. Rad1 {[%clk 0:02:17.5]}
15... Qc7 {[%clk 0:02:51.3]} 16. Rd2 {[%clk 0:02:08.1]} 16... Rad8 {[%clk
0:02:50.7]} 17. Rfd1 {[%clk 0:02:07.9]} 17... Rxd2 {[%clk 0:02:51]} 18. Rxd2
{[%clk 0:02:07.8]} 18... Rd8 {[%clk 0:02:51.5]} 19. Rxd8+ {[%clk 0:01:46.5]}
19... Qxd8 {[%clk 0:02:52.4]} 20. Qd2 {[%clk 0:01:39.3]} 20... Nd4 {[%clk
0:02:24.3]} 21. Nxd4 {[%clk 0:01:29.5]} 21... Bxg2 {[%clk 0:02:23.8]} 22. Nf3
{[%clk 0:01:08.5]} 22... Qxd2 {[%clk 0:02:24.7]} 23. Nxd2 {[%clk 0:01:09.2]}
23... Bc6 {[%clk 0:02:24.7]} 24. f3 {[%clk 0:01:08.4]} 24... f6 {[%clk
0:02:23.8]} 25. g4 {[%clk 0:01:05.5]} 25... g5 {[%clk 0:02:19.6]} 26. Kf2 {[%clk
0:01:00.4]} 26... Kf7 {[%clk 0:02:19.8]} 27. e4 {[%clk 0:00:57.7]} 27... Ke6
{[%clk 0:02:12.3]} 28. Ke3 {[%clk 0:00:57.5]} 28... Kd6 {[%clk 0:02:08.7]} 29.
Kd3 {[%clk 0:00:56.2]} 29... Be8 {[%clk 0:02:01.2]} 30. h3 {[%clk 0:00:54.4]}
30... h5 {[%clk 0:02:01]} 31. a4 {[%clk 0:00:42.6]} 31... e6 {[%clk 0:01:58.2]}
32. Ke3 {[%clk 0:00:36.4]} 32... Ke5 {[%clk 0:01:55.1]} 33. Nf1 {[%clk
0:00:30.8]} 33... h4 {[%clk 0:01:52.7]} 34. Nd2 {[%clk 0:00:26.4]} 34... Bd7
{[%clk 0:01:47.7]} 35. Nb1 {[%clk 0:00:23.7]} 35... f5 {[%clk 0:01:47.6]} 36.
Nc3 {[%clk 0:00:17.5]} 36... Bc6 {[%clk 0:01:45.2]} 37. exf5 {[%clk 0:00:05.5]}
37... exf5 {[%clk 0:01:46.1]} 38. gxf5 {[%clk 0:00:02.8]} 38... Kxf5 {[%clk
0:01:47]} 39. Ne2 {[%clk 0:00:02.1]} 39... Bd7 {[%clk 0:01:41.9]} 40. Ng1 {[%clk
0:00:01.7]} 40... Ke5 {[%clk 0:01:41.7]} 41. a5 {[%clk 0:00:01.3]} 41... Bf5
{[%clk 0:01:40.7]} 0-1

[Event "Early-Titled-Tuesday-Blitz-January-30-2024"]
[Site "Chess.com"]
[Date "2024.01.30"]
[Round "3"]
[White "whiteglovethief"]
[Black "Evgeny81"]
[Result "0-1"]
[WhiteElo "2508"]
[BlackElo "2743"]
[TimeControl "180+1"]
[EndTime "8:29:11 PST"]
[Termination "Evgeny81 won by resignation"]

1. d4 {[%clk 0:03:00.9]} 1... d5 {[%clk 0:02:58.4]} 2. c4 {[%clk 0:02:58.6]}
2... e5 {[%clk 0:02:58.6]} 3. dxe5 {[%clk 0:02:55.7]} 3... d4 {[%clk 0:02:59.2]}
4. Nf3 {[%clk 0:02:55.4]} 4... Nc6 {[%clk 0:02:59.7]} 5. Nbd2 {[%clk 0:02:53.4]}
5... f6 {[%clk 0:02:56.8]} 6. exf6 {[%clk 0:02:52]} 6... Nxf6 {[%clk 0:02:57.7]}
7. g3 {[%clk 0:02:50.6]} 7... Bf5 {[%clk 0:02:49.5]} 8. Bg2 {[%clk 0:02:50.6]}
8... Qd7 {[%clk 0:02:49.8]} 9. O-O {[%clk 0:02:49.7]} 9... O-O-O {[%clk
0:02:50.4]} 10. a3 {[%clk 0:02:47.2]} 10... g6 {[%clk 0:02:29.9]} 11. b4 {[%clk
0:02:45.7]} 11... Bg7 {[%clk 0:02:30.4]} 12. b5 {[%clk 0:02:40.3]} 12... Ne7
{[%clk 0:02:29.9]} 13. Qa4 {[%clk 0:02:38.4]} 13... Kb8 {[%clk 0:02:29.3]} 14.
Nb3 {[%clk 0:02:33]} 14... Ne4 {[%clk 0:02:28]} 15. Bf4 {[%clk 0:02:20.8]} 15...
Nc3 {[%clk 0:02:23.5]} 16. Qb4 {[%clk 0:02:16.2]} 16... Nxe2+ {[%clk 0:02:21.4]}
17. Kh1 {[%clk 0:02:16.7]} 17... Nxf4 {[%clk 0:02:21.8]} 18. gxf4 {[%clk
0:02:16.3]} 18... Qd6 {[%clk 0:02:04.5]} 19. Ne5 {[%clk 0:02:12.6]} 19... Rhf8
{[%clk 0:01:44.4]} 20. Nc5 {[%clk 0:01:58.8]} 20... Bc8 {[%clk 0:01:41.6]} 21.
Rfb1 {[%clk 0:01:13.1]} 21... Rxf4 {[%clk 0:01:37.7]} 22. Na6+ {[%clk
0:01:05.8]} 22... Ka8 {[%clk 0:01:34.8]} 23. Qa5 {[%clk 0:00:54.9]} 23... Bxe5
{[%clk 0:01:29.4]} 24. Nxc7+ {[%clk 0:00:49.6]} 24... Qxc7 {[%clk 0:01:29.1]}
25. b6 {[%clk 0:00:50.2]} 25... Qb8 {[%clk 0:01:22.9]} 26. bxa7 {[%clk 0:00:47]}
26... Qc7 {[%clk 0:01:22.3]} 27. Rb6 {[%clk 0:00:33]} 27... Rf6 {[%clk
0:01:17.7]} 28. Rab1 {[%clk 0:00:29.3]} 28... Rxb6 {[%clk 0:01:17.5]} 29. Rxb6
{[%clk 0:00:30.2]} 29... d3 {[%clk 0:01:16.5]} 30. Qa6 {[%clk 0:00:14.9]} 30...
d2 {[%clk 0:01:08.7]} 0-1

[Event "Early-Titled-Tuesday-Blitz-January-30-2024"]
[Site "Chess.com"]
[Date "2024.01.30"]
[Round "3"]
[White "Gabrielian_Artur"]
[Black "Irishchessman16"]
[Result "1-0"]
[WhiteElo "2757"]
[BlackElo "2514"]
[TimeControl "180+1"]
[EndTime "8:29:12 PST"]
[Termination "Gabrielian_Artur won by resignation"]

1. e4 {[%clk 0:03:00.9]} 1... c5 {[%clk 0:02:59.1]} 2. Nf3 {[%clk 0:03:00.5]}
2... e6 {[%clk 0:02:58.5]} 3. d3 {[%clk 0:03:00.3]} 3... Nc6 {[%clk 0:02:55.6]}
4. g3 {[%clk 0:03:00]} 4... Nf6 {[%clk 0:02:53.6]} 5. Bg2 {[%clk 0:02:59.7]}
5... d6 {[%clk 0:02:54.2]} 6. O-O {[%clk 0:02:58.6]} 6... Be7 {[%clk 0:02:54.8]}
7. Re1 {[%clk 0:02:57.9]} 7... O-O {[%clk 0:02:55.2]} 8. c3 {[%clk 0:02:58]}
8... Rb8 {[%clk 0:02:47.4]} 9. Nbd2 {[%clk 0:02:52.8]} 9... b5 {[%clk
0:02:44.6]} 10. d4 {[%clk 0:02:52]} 10... cxd4 {[%clk 0:02:43.9]} 11. cxd4
{[%clk 0:02:51.7]} 11... d5 {[%clk 0:02:44.1]} 12. e5 {[%clk 0:02:51.2]} 12...
Nd7 {[%clk 0:02:42.7]} 13. h4 {[%clk 0:02:50.2]} 13... h6 {[%clk 0:02:33.1]} 14.
Nf1 {[%clk 0:02:49.3]} 14... Re8 {[%clk 0:02:30.7]} 15. N1h2 {[%clk 0:02:46]}
15... Bf8 {[%clk 0:02:29.2]} 16. g4 {[%clk 0:02:44.3]} 16... f6 {[%clk
0:02:17.8]} 17. exf6 {[%clk 0:02:37.9]} 17... Nxf6 {[%clk 0:02:12.5]} 18. g5
{[%clk 0:02:36]} 18... Ne4 {[%clk 0:02:09.3]} 19. Ng4 {[%clk 0:02:32.3]} 19...
hxg5 {[%clk 0:01:49.5]} 20. Nxg5 {[%clk 0:02:08.9]} 20... Nxg5 {[%clk
0:01:49.1]} 21. hxg5 {[%clk 0:02:06.3]} 21... Be7 {[%clk 0:01:39.8]} 22. g6
{[%clk 0:01:54]} 22... Bf6 {[%clk 0:01:37.3]} 23. Qd3 {[%clk 0:01:45.1]} 23...
Nxd4 {[%clk 0:01:18.9]} 24. Bf4 {[%clk 0:01:44.3]} 24... Bd7 {[%clk 0:00:36.9]}
25. Bxb8 {[%clk 0:01:37.4]} 25... Qxb8 {[%clk 0:00:30.1]} 26. Nxf6+ {[%clk
0:01:37.3]} 26... gxf6 {[%clk 0:00:30.3]} 27. Qxd4 {[%clk 0:01:37.5]} 27... Kg7
{[%clk 0:00:29.1]} 28. Re3 {[%clk 0:01:34.2]} 28... Rh8 {[%clk 0:00:27.6]} 29.
Rh3 {[%clk 0:01:32.8]} 29... e5 {[%clk 0:00:27.7]} 30. Qxd5 {[%clk 0:01:29.2]}
30... Bxh3 {[%clk 0:00:25.9]} 31. Qf7+ {[%clk 0:01:28.9]} 31... Kh6 {[%clk
0:00:24.4]} 32. Bxh3 {[%clk 0:01:25.7]} 32... Kg5 {[%clk 0:00:23.7]} 33. g7
{[%clk 0:01:19.1]} 33... Rg8 {[%clk 0:00:20.5]} 34. Be6 {[%clk 0:01:16.4]} 1-0

[Event "Early-Titled-Tuesday-Blitz-January-30-2024"]
[Site "Chess.com"]
[Date "2024.01.30"]
[Round "3"]
[White "C_K_G"]
[Black "Onthequiet"]
[Result "0-1"]
[WhiteElo "2135"]
[BlackElo "2403"]
[TimeControl "180+1"]
[EndTime "8:29:15 PST"]
[Termination "Onthequiet won by resignation"]

1. e4 {[%clk 0:03:00.9]} 1... c5 {[%clk 0:02:58.8]} 2. Nf3 {[%clk 0:03:00.7]}
2... Nc6 {[%clk 0:02:59.4]} 3. d4 {[%clk 0:02:59.8]} 3... cxd4 {[%clk
0:02:59.9]} 4. Nxd4 {[%clk 0:02:59.1]} 4... Qb6 {[%clk 0:03:00.5]} 5. Nb3 {[%clk
0:02:56.8]} 5... Nf6 {[%clk 0:03:00.1]} 6. Nc3 {[%clk 0:02:54.7]} 6... e6 {[%clk
0:03:00.5]} 7. Be3 {[%clk 0:02:52.8]} 7... Qc7 {[%clk 0:02:59.6]} 8. a3 {[%clk
0:02:42.4]} 8... d6 {[%clk 0:02:55.3]} 9. Be2 {[%clk 0:02:40.8]} 9... Be7 {[%clk
0:02:55]} 10. O-O {[%clk 0:02:40.6]} 10... O-O {[%clk 0:02:53.7]} 11. f4 {[%clk
0:02:40]} 11... a6 {[%clk 0:02:53.7]} 12. Bf3 {[%clk 0:02:37.7]} 12... b5 {[%clk
0:02:52.9]} 13. g4 {[%clk 0:02:15.1]} 13... Bb7 {[%clk 0:02:43.2]} 14. g5 {[%clk
0:02:13.8]} 14... Nd7 {[%clk 0:02:41.7]} 15. Bg2 {[%clk 0:02:11.4]} 15... b4
{[%clk 0:02:39.9]} 16. axb4 {[%clk 0:02:08.6]} 16... Nxb4 {[%clk 0:02:40.4]} 17.
Rf2 {[%clk 0:01:56.3]} 17... Rfd8 {[%clk 0:02:38]} 18. Qh5 {[%clk 0:01:43.8]}
18... g6 {[%clk 0:02:36.2]} 19. Qh3 {[%clk 0:01:38.1]} 19... Nc5 {[%clk
0:02:34.5]} 20. f5 {[%clk 0:01:32.7]} 20... exf5 {[%clk 0:02:31.7]} 21. exf5
{[%clk 0:01:31.8]} 21... Bxg2 {[%clk 0:02:32.3]} 22. Qxg2 {[%clk 0:01:06.9]}
22... Nxb3 {[%clk 0:02:31.1]} 23. cxb3 {[%clk 0:01:04.7]} 23... d5 {[%clk
0:02:31.3]} 24. fxg6 {[%clk 0:00:59.7]} 24... hxg6 {[%clk 0:02:24]} 25. Rd1
{[%clk 0:00:49.4]} 25... Bc5 {[%clk 0:02:22.6]} 26. Rd4 {[%clk 0:00:30]} 26...
Qa7 {[%clk 0:02:08]} 27. Qg4 {[%clk 0:00:25.6]} 27... Nc6 {[%clk 0:02:04.7]} 28.
Nxd5 {[%clk 0:00:14.4]} 28... Rxd5 {[%clk 0:02:02.9]} 29. Rxd5 {[%clk
0:00:14.7]} 29... Bxe3 {[%clk 0:02:03.3]} 30. Qf3 {[%clk 0:00:11.1]} 30... Bxf2+
{[%clk 0:02:01.4]} 31. Kg2 {[%clk 0:00:09]} 31... Bd4 {[%clk 0:01:37.1]} 32. Rd6
{[%clk 0:00:06.9]} 32... Ne5 {[%clk 0:01:33.5]} 33. Qd5 {[%clk 0:00:06.9]} 33...
Bxb2 {[%clk 0:01:28.5]} 34. Rd7 {[%clk 0:00:02.5]} 0-1

[Event "Early-Titled-Tuesday-Blitz-January-30-2024"]
[Site "Chess.com"]
[Date "2024.01.30"]
[Round "3"]
[White "wild3000"]
[Black "Klavdia_Nik"]
[Result "1-0"]
[WhiteElo "2403"]
[BlackElo "2134"]
[TimeControl "180+1"]
[EndTime "8:29:16 PST"]
[Termination "wild3000 won on time"]

1. d4 {[%clk 0:02:54.6]} 1... Nf6 {[%clk 0:02:59.3]} 2. Nf3 {[%clk 0:02:54.2]}
2... c5 {[%clk 0:02:59.4]} 3. e3 {[%clk 0:02:55.1]} 3... b6 {[%clk 0:02:59.1]}
4. Be2 {[%clk 0:02:55.4]} 4... Bb7 {[%clk 0:02:59.2]} 5. O-O {[%clk 0:02:56.3]}
5... g6 {[%clk 0:02:58.5]} 6. b3 {[%clk 0:02:57.2]} 6... Bg7 {[%clk 0:02:58]} 7.
Bb2 {[%clk 0:02:58.1]} 7... O-O {[%clk 0:02:58]} 8. c4 {[%clk 0:02:59]} 8...
cxd4 {[%clk 0:02:56.3]} 9. Nxd4 {[%clk 0:02:58.4]} 9... Nc6 {[%clk 0:02:41.2]}
10. Bf3 {[%clk 0:02:55.4]} 10... Rc8 {[%clk 0:02:40.6]} 11. Nc3 {[%clk
0:02:50.9]} 11... d6 {[%clk 0:02:36.2]} 12. Nxc6 {[%clk 0:02:40.2]} 12... Bxc6
{[%clk 0:02:35.7]} 13. Nd5 {[%clk 0:02:40.3]} 13... Nxd5 {[%clk 0:02:13]} 14.
Bxg7 {[%clk 0:02:39.8]} 14... Nxe3 {[%clk 0:02:05.5]} 15. Qd4 {[%clk 0:02:26.9]}
15... Nf5 {[%clk 0:02:05.2]} 16. Qf4 {[%clk 0:02:09.9]} 16... Nxg7 {[%clk
0:01:57.1]} 17. Bg4 {[%clk 0:02:09.4]} 17... Bd7 {[%clk 0:01:46.6]} 18. Bf3
{[%clk 0:02:07.2]} 18... Qc7 {[%clk 0:01:37.6]} 19. Rfe1 {[%clk 0:02:07]} 19...
Ne6 {[%clk 0:01:32.6]} 20. Qh6 {[%clk 0:02:06.3]} 20... Rfe8 {[%clk 0:01:22.9]}
21. Re4 {[%clk 0:02:05.8]} 21... Bc6 {[%clk 0:00:56.1]} 22. Rh4 {[%clk
0:02:05.3]} 22... Nf8 {[%clk 0:00:56.6]} 23. Bg4 {[%clk 0:02:05.3]} 23... e6
{[%clk 0:00:56.3]} 24. Be2 {[%clk 0:02:01.7]} 24... Qe7 {[%clk 0:00:54.6]} 25.
Rd4 {[%clk 0:01:53.4]} 25... d5 {[%clk 0:00:52.5]} 26. Re1 {[%clk 0:01:46.8]}
26... Qf6 {[%clk 0:00:49.4]} 27. Qd2 {[%clk 0:01:45]} 27... e5 {[%clk
0:00:35.9]} 28. Rg4 {[%clk 0:01:43.1]} 28... d4 {[%clk 0:00:33.8]} 29. h4 {[%clk
0:01:42.7]} 29... h5 {[%clk 0:00:31.3]} 30. Rg3 {[%clk 0:01:35.7]} 30... Ne6
{[%clk 0:00:23.2]} 31. Bxh5 {[%clk 0:01:31.1]} 31... Nf4 {[%clk 0:00:18.5]} 32.
Bg4 {[%clk 0:01:30.3]} 32... Rcd8 {[%clk 0:00:15]} 33. h5 {[%clk 0:01:29.2]}
33... Kg7 {[%clk 0:00:06.3]} 34. b4 {[%clk 0:01:28]} 1-0

[Event "Early-Titled-Tuesday-Blitz-January-30-2024"]
[Site "Chess.com"]
[Date "2024.01.30"]
[Round "3"]
[White "Aanna12"]
[Black "Baby_Legs"]
[Result "0-1"]
[WhiteElo "2308"]
[BlackElo "2638"]
[TimeControl "180+1"]
[EndTime "8:29:19 PST"]
[Termination "Baby_Legs won by resignation"]

1. e4 {[%clk 0:03:00.9]} 1... c5 {[%clk 0:02:57.6]} 2. Nf3 {[%clk 0:03:00.1]}
2... e6 {[%clk 0:02:57.9]} 3. d3 {[%clk 0:02:59.9]} 3... Nc6 {[%clk 0:02:57.4]}
4. g3 {[%clk 0:02:57.6]} 4... g6 {[%clk 0:02:57.6]} 5. Bg2 {[%clk 0:02:56.3]}
5... Bg7 {[%clk 0:02:57.9]} 6. O-O {[%clk 0:02:56.5]} 6... Nge7 {[%clk
0:02:58.2]} 7. c3 {[%clk 0:02:56.5]} 7... O-O {[%clk 0:02:54.2]} 8. d4 {[%clk
0:02:52]} 8... cxd4 {[%clk 0:02:53.9]} 9. cxd4 {[%clk 0:02:52.1]} 9... d5 {[%clk
0:02:53.2]} 10. e5 {[%clk 0:02:52.2]} 10... b6 {[%clk 0:02:53.5]} 11. Nc3 {[%clk
0:02:50.4]} 11... Ba6 {[%clk 0:02:53.1]} 12. Re1 {[%clk 0:02:50.2]} 12... Qd7
{[%clk 0:02:46.8]} 13. Bg5 {[%clk 0:02:43.9]} 13... h6 {[%clk 0:02:42.5]} 14.
Bf4 {[%clk 0:02:34.7]} 14... Nb4 {[%clk 0:02:40.1]} 15. Bf1 {[%clk 0:02:31.3]}
15... Bxf1 {[%clk 0:02:38.3]} 16. Rxf1 {[%clk 0:02:31.3]} 16... Rfc8 {[%clk
0:02:30.7]} 17. h4 {[%clk 0:02:22.9]} 17... h5 {[%clk 0:02:27.4]} 18. Qd2 {[%clk
0:02:18.3]} 18... Nf5 {[%clk 0:02:25.6]} 19. Bg5 {[%clk 0:02:11.9]} 19... Rc4
{[%clk 0:02:18.7]} 20. Rfd1 {[%clk 0:02:02.6]} 20... Rac8 {[%clk 0:02:12.3]} 21.
Rac1 {[%clk 0:01:58.3]} 21... R4c7 {[%clk 0:02:03.6]} 22. a3 {[%clk 0:01:54.8]}
22... Nc6 {[%clk 0:01:57.7]} 23. Qf4 {[%clk 0:01:54.5]} 23... Na5 {[%clk
0:01:49.2]} 24. Rb1 {[%clk 0:01:07.3]} 24... Rc4 {[%clk 0:01:41.3]} 25. Nh2
{[%clk 0:00:59.4]} 25... Nc6 {[%clk 0:01:38.8]} 26. Ne2 {[%clk 0:00:44.5]} 26...
Bxe5 {[%clk 0:01:36.7]} 27. Qf3 {[%clk 0:00:34.8]} 27... Nfxd4 {[%clk
0:01:31.4]} 28. Nxd4 {[%clk 0:00:34.2]} 28... Nxd4 {[%clk 0:01:32.3]} 29. Qd3
{[%clk 0:00:30.8]} 29... Nf5 {[%clk 0:01:28.8]} 30. Nf3 {[%clk 0:00:27.6]} 30...
Bg7 {[%clk 0:01:28.7]} 31. Re1 {[%clk 0:00:17.6]} 31... Qc7 {[%clk 0:01:26.5]}
32. Bf4 {[%clk 0:00:12.6]} 32... Rxf4 {[%clk 0:01:26.6]} 33. gxf4 {[%clk
0:00:10.9]} 33... Qxf4 {[%clk 0:01:27.5]} 34. Qd2 {[%clk 0:00:05.7]} 34... Qxf3
{[%clk 0:01:27.2]} 0-1

[Event "Early-Titled-Tuesday-Blitz-January-30-2024"]
[Site "Chess.com"]
[Date "2024.01.30"]
[Round "3"]
[White "RandomNoob04"]
[Black "elgrona"]
[Result "1-0"]
[WhiteElo "2567"]
[BlackElo "2274"]
[TimeControl "180+1"]
[EndTime "8:29:23 PST"]
[Termination "RandomNoob04 won on time"]

1. e4 {[%clk 0:03:00.1]} 1... c5 {[%clk 0:02:59.4]} 2. d4 {[%clk 0:03:00.4]}
2... cxd4 {[%clk 0:02:59.3]} 3. c3 {[%clk 0:03:01]} 3... d3 {[%clk 0:02:59.9]}
4. Bxd3 {[%clk 0:03:01]} 4... Nc6 {[%clk 0:02:59.7]} 5. Nf3 {[%clk 0:03:01.6]}
5... g6 {[%clk 0:02:59.5]} 6. O-O {[%clk 0:03:01.6]} 6... Bg7 {[%clk 0:03:00.2]}
7. c4 {[%clk 0:03:02]} 7... d6 {[%clk 0:03:00.8]} 8. h3 {[%clk 0:03:02.2]} 8...
Nf6 {[%clk 0:03:00.2]} 9. Nc3 {[%clk 0:03:03.1]} 9... Nd7 {[%clk 0:02:56.6]} 10.
Be3 {[%clk 0:03:02.2]} 10... Bxc3 {[%clk 0:02:54.8]} 11. bxc3 {[%clk 0:03:03.1]}
11... Qa5 {[%clk 0:02:51.2]} 12. Qd2 {[%clk 0:02:52.4]} 12... Nde5 {[%clk
0:02:25.8]} 13. Nxe5 {[%clk 0:02:48.8]} 13... Nxe5 {[%clk 0:02:26]} 14. Be2
{[%clk 0:02:48.9]} 14... Be6 {[%clk 0:02:22.4]} 15. Bd4 {[%clk 0:02:40.6]} 15...
f6 {[%clk 0:02:16.5]} 16. c5 {[%clk 0:02:32.7]} 16... dxc5 {[%clk 0:02:15.4]}
17. Bxe5 {[%clk 0:02:32.5]} 17... fxe5 {[%clk 0:02:16]} 18. Rab1 {[%clk
0:02:28.4]} 18... Rd8 {[%clk 0:01:44.9]} 19. Qh6 {[%clk 0:02:16.4]} 19... b6
{[%clk 0:01:22.4]} 20. Qg7 {[%clk 0:02:05.4]} 20... Rg8 {[%clk 0:01:12.6]} 21.
Qxe5 {[%clk 0:02:03.6]} 21... Bxa2 {[%clk 0:01:00.4]} 22. Ra1 {[%clk 0:01:52.2]}
22... Rd2 {[%clk 0:00:57.9]} 23. Bc4 {[%clk 0:01:42.9]} 23... Rf8 {[%clk
0:00:53.4]} 24. Be6 {[%clk 0:01:31.7]} 24... c4 {[%clk 0:00:38.8]} 25. Qb8+
{[%clk 0:01:12]} 25... Rd8 {[%clk 0:00:37.9]} 26. Qc7 {[%clk 0:01:12.9]} 26...
Rf6 {[%clk 0:00:13.9]} 27. Bxc4 {[%clk 0:01:06.9]} 27... Bxc4 {[%clk 0:00:07.2]}
28. Rxa5 {[%clk 0:01:05.6]} 28... Bxf1 {[%clk 0:00:06.6]} 29. Rxa7 {[%clk
0:01:02.6]} 1-0

[Event "Early-Titled-Tuesday-Blitz-January-30-2024"]
[Site "Chess.com"]
[Date "2024.01.30"]
[Round "3"]
[White "hasagoodchesser"]
[Black "artooon"]
[Result "0-1"]
[WhiteElo "2737"]
[BlackElo "3003"]
[TimeControl "180+1"]
[EndTime "8:29:26 PST"]
[Termination "artooon won by resignation"]

1. Nf3 {[%clk 0:02:59.8]} 1... Nf6 {[%clk 0:02:58.3]} 2. g3 {[%clk 0:02:59.9]}
2... d5 {[%clk 0:02:58.2]} 3. Bg2 {[%clk 0:02:59.8]} 3... c6 {[%clk 0:02:58.5]}
4. O-O {[%clk 0:02:59.5]} 4... g6 {[%clk 0:02:59.1]} 5. b3 {[%clk 0:02:57.8]}
5... Bg7 {[%clk 0:02:59.2]} 6. Bb2 {[%clk 0:02:58.5]} 6... O-O {[%clk
0:02:58.7]} 7. c4 {[%clk 0:02:58.6]} 7... Nbd7 {[%clk 0:02:52.9]} 8. Nc3 {[%clk
0:02:54.5]} 8... e5 {[%clk 0:02:50.8]} 9. cxd5 {[%clk 0:02:53.1]} 9... cxd5
{[%clk 0:02:51.7]} 10. d4 {[%clk 0:02:53.8]} 10... e4 {[%clk 0:02:51]} 11. Ne5
{[%clk 0:02:53]} 11... Re8 {[%clk 0:02:51.7]} 12. Rc1 {[%clk 0:02:16.2]} 12...
a6 {[%clk 0:02:38.8]} 13. Na4 {[%clk 0:02:06.3]} 13... Nxe5 {[%clk 0:02:38.2]}
14. dxe5 {[%clk 0:02:06.6]} 14... Ng4 {[%clk 0:02:38.9]} 15. Qd2 {[%clk
0:01:40.9]} 15... Nxe5 {[%clk 0:02:21.3]} 16. Rfd1 {[%clk 0:01:36.4]} 16... Be6
{[%clk 0:02:20.8]} 17. Nc5 {[%clk 0:01:32.5]} 17... Qe7 {[%clk 0:02:09.7]} 18.
Nxe6 {[%clk 0:01:06.6]} 18... fxe6 {[%clk 0:02:10.6]} 19. Bxe5 {[%clk
0:01:05.1]} 19... Bxe5 {[%clk 0:02:11.5]} 20. e3 {[%clk 0:01:05.4]} 20... Rf8
{[%clk 0:02:09.2]} 21. Rc2 {[%clk 0:00:56.8]} 21... Rf7 {[%clk 0:02:05.7]} 22.
Rdc1 {[%clk 0:00:57.1]} 22... Qd7 {[%clk 0:02:03.5]} 23. Qb4 {[%clk 0:00:47.6]}
23... Raf8 {[%clk 0:02:01.8]} 24. Bh3 {[%clk 0:00:47.8]} 24... Rf6 {[%clk
0:01:57.8]} 25. Qe1 {[%clk 0:00:34.3]} 25... h5 {[%clk 0:01:56.4]} 26. Bg2
{[%clk 0:00:23.3]} 26... h4 {[%clk 0:01:54.3]} 27. Qe2 {[%clk 0:00:23.4]} 27...
Rxf2 {[%clk 0:01:50.7]} 28. Qxf2 {[%clk 0:00:22.2]} 28... Rxf2 {[%clk
0:01:51.6]} 29. Rxf2 {[%clk 0:00:22.5]} 29... hxg3 {[%clk 0:01:50.7]} 30. hxg3
{[%clk 0:00:23.4]} 30... Bxg3 {[%clk 0:01:39.2]} 31. Rf6 {[%clk 0:00:23.6]}
31... Kg7 {[%clk 0:01:39.5]} 32. Rcf1 {[%clk 0:00:23.3]} 32... Be5 {[%clk
0:01:39]} 33. R6f2 {[%clk 0:00:22.9]} 33... Bg3 {[%clk 0:01:33.9]} 34. Rf8
{[%clk 0:00:22.3]} 34... Bd6 {[%clk 0:01:29.8]} 35. R8f2 {[%clk 0:00:15.3]}
35... Bc5 {[%clk 0:01:28.2]} 36. Re1 {[%clk 0:00:11.4]} 36... Qe7 {[%clk
0:01:28.4]} 37. Bh3 {[%clk 0:00:10.9]} 37... Bxe3 {[%clk 0:01:28.4]} 38. Rxe3
{[%clk 0:00:10]} 38... Qg5+ {[%clk 0:01:28.7]} 39. Kh2 {[%clk 0:00:10.8]} 39...
Qxe3 {[%clk 0:01:28.8]} 40. Rg2 {[%clk 0:00:11.6]} 40... Qf4+ {[%clk 0:01:29.1]}
41. Rg3 {[%clk 0:00:12.5]} 41... e3 {[%clk 0:01:29.8]} 42. Bg4 {[%clk
0:00:12.6]} 42... d4 {[%clk 0:01:29.8]} 43. Be2 {[%clk 0:00:12.7]} 43... e5
{[%clk 0:01:30.4]} 44. Kg2 {[%clk 0:00:13]} 44... Qf2+ {[%clk 0:01:30.4]} 0-1

[Event "Early-Titled-Tuesday-Blitz-January-30-2024"]
[Site "Chess.com"]
[Date "2024.01.30"]
[Round "3"]
[White "Andrey_Klymchuk"]
[Black "SantoBlue"]
[Result "1-0"]
[WhiteElo "2732"]
[BlackElo "2948"]
[TimeControl "180+1"]
[EndTime "8:29:26 PST"]
[Termination "Andrey_Klymchuk won by resignation"]

1. e4 {[%clk 0:03:00.9]} 1... d6 {[%clk 0:02:58.2]} 2. d4 {[%clk 0:03:00.1]}
2... Nf6 {[%clk 0:02:58.8]} 3. Nc3 {[%clk 0:03:00.1]} 3... e5 {[%clk 0:02:59.1]}
4. dxe5 {[%clk 0:02:57.7]} 4... dxe5 {[%clk 0:02:59]} 5. Qxd8+ {[%clk
0:02:58.4]} 5... Kxd8 {[%clk 0:02:59.9]} 6. f4 {[%clk 0:02:58.7]} 6... Bb4
{[%clk 0:02:57.7]} 7. Bd3 {[%clk 0:02:58.5]} 7... exf4 {[%clk 0:02:54.1]} 8.
Bxf4 {[%clk 0:02:56.1]} 8... c6 {[%clk 0:02:54.2]} 9. O-O-O {[%clk 0:02:55.2]}
9... Nbd7 {[%clk 0:02:51.8]} 10. Nf3 {[%clk 0:02:50.2]} 10... h6 {[%clk
0:02:45.7]} 11. a3 {[%clk 0:02:42.5]} 11... Bxc3 {[%clk 0:02:44.7]} 12. bxc3
{[%clk 0:02:42.5]} 12... Ke7 {[%clk 0:02:45.4]} 13. Bc4 {[%clk 0:02:34.8]} 13...
Nb6 {[%clk 0:02:45.6]} 14. Bd6+ {[%clk 0:02:28.1]} 14... Ke8 {[%clk 0:02:46]}
15. Bb3 {[%clk 0:02:19.8]} 15... Be6 {[%clk 0:02:39.7]} 16. Rhe1 {[%clk
0:02:14.2]} 16... Nc4 {[%clk 0:02:24.6]} 17. Nd4 {[%clk 0:02:04]} 17... Nxd6
{[%clk 0:01:42.6]} 18. Nxe6 {[%clk 0:02:03.8]} 18... Nb5 {[%clk 0:01:30.7]} 19.
Nxg7+ {[%clk 0:01:51.8]} 19... Kf8 {[%clk 0:01:31.2]} 20. e5 {[%clk 0:01:33.7]}
20... Nd5 {[%clk 0:01:16.8]} 21. Nf5 {[%clk 0:01:18.3]} 21... Nbxc3 {[%clk
0:01:16.4]} 22. Rd3 {[%clk 0:01:16.5]} 22... Rg8 {[%clk 0:01:11.3]} 23. g3
{[%clk 0:01:11.3]} 23... Rg5 {[%clk 0:01:10.3]} 24. Nd6 {[%clk 0:01:10.2]} 24...
a5 {[%clk 0:00:58.7]} 25. a4 {[%clk 0:01:06.9]} 25... Rg4 {[%clk 0:00:49.4]} 26.
Rf3 {[%clk 0:01:03.9]} 26... f6 {[%clk 0:00:39.7]} 27. exf6 {[%clk 0:01:03.4]}
27... Rg6 {[%clk 0:00:27.4]} 28. Kb2 {[%clk 0:00:56.8]} 28... Rd8 {[%clk
0:00:25.6]} 29. Nxb7 {[%clk 0:00:52.2]} 29... Rb8 {[%clk 0:00:26.2]} 30. Nc5
{[%clk 0:00:52.4]} 30... Re8 {[%clk 0:00:17.3]} 31. Rxe8+ {[%clk 0:00:48.2]}
31... Kxe8 {[%clk 0:00:17.5]} 32. f7+ {[%clk 0:00:49.1]} 1-0